fUSD/lending_fUSD_20260423
["ID","MTS","AMOUNT","RATE_DAILY","PERIOD"]
[421022819,1776939034539,-500.0,9.455e-05,2]
[421022820,1776939034549,-500.0,9.455e-05,2]
[421022821,1776939034559,-500.0,9.455e-05,2]
[421022822,1776939034568,-500.0,9.455e-05,2]
[421022823,1776939034577,-500.0,9.455e-05,2]
[421022824,1776939034588,-500.0,9.455e-05,2]
[421022825,1776939034597,-500.0,9.455e-05,2]
[421022826,1776939034607,-500.0,9.455e-05,2]
[421022827,1776939034617,-500.0,9.455e-05,2]
[421022828,1776939034627,-500.0,9.455e-05,2]
[421022829,1776939034636,-601.9010017,9.455e-05,2]
[421022830,1776939034645,-500.0,9.455e-05,2]
[421022831,1776939034655,-500.0,9.455e-05,2]
[421022832,1776939034664,-500.0,9.455e-05,2]
[421022833,1776939034673,-500.0,9.455e-05,2]
[421022834,1776939034682,-500.0,9.455e-05,2]
[421022835,1776939034692,-500.0,9.455e-05,2]
[421022836,1776939034702,-500.0,9.455e-05,2]
[421022837,1776939034711,-500.0,9.455e-05,2]
[421022838,1776939034720,-500.0,9.455e-05,2]
[421022839,1776939034730,-500.0,9.455e-05,2]
[421022840,1776939034739,-500.0,9.455e-05,2]
[421022841,1776939034748,-500.0,9.455e-05,2]
[421022842,1776939034758,-500.0,9.455e-05,2]
[421022843,1776939034768,-500.0,9.455e-05,2]
[421022844,1776939034778,-500.0,9.455e-05,2]
[421022845,1776939034789,-500.0,9.455e-05,2]
[421022846,1776939034798,-600.0,9.455e-05,2]
[421022847,1776939034807,-33086.6184,9.456e-05,2]
[421022848,1776939034817,-3670.934,9.456e-05,2]
[421022849,1776939034827,-2500.0,9.456e-05,2]
[421022850,1776939034836,-500.0,9.499e-05,2]
[421022851,1776939034845,-178.994335,9.535e-05,2]
[421022852,1776939034854,-350.0,9.547e-05,2]
[421022853,1776939034864,-151.0,9.553e-05,2]
[421022854,1776939034873,-151.0,9.553e-05,2]
[421022855,1776939034882,-151.0,9.556e-05,2]
[421022856,1776939034892,-151.0,9.556e-05,2]
[421022857,1776939034902,-967.38168479,9.559e-05,2]
[421022858,1776939034912,-23662.72658345,9.592e-05,2]
[421022859,1776939034926,-7808.72692465,9.592e-05,2]
[421022860,1776939034937,-151.0,9.594e-05,2]
[421022861,1776939034947,-486.959588,9.604e-05,2]
[421022862,1776939034956,-486.959588,9.604e-05,2]
[421022863,1776939034966,-486.959588,9.604e-05,2]
[421022864,1776939034976,-486.959588,9.604e-05,2]
[421022865,1776939034987,-151.0,9.604e-05,2]
[421022866,1776939034996,-189.337614,9.604e-05,2]
[421022867,1776939035006,-189.337614,9.604e-05,2]
[421022868,1776939035015,-189.337614,9.604e-05,2]
[421022869,1776939035025,-189.337614,9.604e-05,2]
[421022870,1776939035034,-16379.0414853,9.604e-05,2]
[421022871,1776939035044,-241.96,9.616e-05,2]
[421022872,1776939035053,-150.0,9.616e-05,2]
[421022873,1776939035062,-150.0,9.616e-05,2]
[421022874,1776939035072,-186.67368106,9.616e-05,2]
[421022875,1776939035081,-150.0,9.616e-05,2]
[421022876,1776939035091,-150.0,9.616e-05,2]
[421022877,1776939035102,-150.0,9.616e-05,2]
[421022878,1776939035113,-150.0,9.616e-05,2]
[421022879,1776939035122,-20391.2164946,9.624e-05,2]
[421022880,1776939035133,-350.0,9.632e-05,3]
[421022881,1776939035143,-6174.44051498,9.657e-05,2]
[421022882,1776939035156,-6963.59640012,9.657e-05,2]
[421022883,1776939035165,-999.99,9.67e-05,2]
[421022884,1776939035174,-150.99,9.67e-05,2]
[421022885,1776939035184,-9707.09,9.67e-05,2]
[421022886,1776939035194,-4445.06,9.67e-05,2]
[421022887,1776939035203,-651.94,9.67e-05,2]
[421022888,1776939035212,-6693.2512944,9.67e-05,2]
[421022889,1776939035224,-1548.0,9.67e-05,2]
[421022890,1776939035249,-2134.0,9.67e-05,2]
[421022891,1776939035671,-378.35139607,9.67e-05,2]
[421022892,1776939035683,-658.49730953,9.67e-05,2]
[421022893,1776939035693,-772.16900485,9.67e-05,2]
[421022895,1776939037930,-7205.13099515,9.67e-05,2]
[421022896,1776939037941,-299.99,9.67e-05,2]
[421022897,1776939037950,-499.99,9.67e-05,2]
[421022898,1776939037960,-486.959588,9.67e-05,2]
[421022899,1776939037970,-486.959588,9.67e-05,2]
[421022900,1776939037980,-486.959588,9.67e-05,2]
[421022901,1776939037991,-486.959588,9.67e-05,2]
[421022902,1776939038001,-151.0,9.67e-05,2]
[421022903,1776939038010,-151.0,9.67e-05,2]
[421022904,1776939038020,-189.337614,9.67e-05,2]
[421022905,1776939038029,-189.337614,9.67e-05,2]
[421022906,1776939038039,-189.337614,9.67e-05,2]
[421022907,1776939038048,-189.337614,9.67e-05,2]
[421022908,1776939038058,-350.0,9.671e-05,2]
[421022909,1776939038067,-3095.8451211,9.673e-05,2]
[421022910,1776939038077,-1000.0,9.7e-05,2]
[421022911,1776939038086,-1171.0270317,9.704e-05,2]
[421022912,1776939038096,-1329.0,9.721e-05,5]
[421022913,1776939038105,-340.13497463,9.724e-05,2]
[421022914,1776939038114,-350.0,9.733e-05,2]
[421022915,1776939038123,-150.106,9.746e-05,2]
[421022916,1776939038132,-299.0,9.746e-05,2]
[421022917,1776939038142,-150.0,9.746e-05,2]
[421022918,1776939038151,-250.092,9.746e-05,2]
[421022919,1776939038160,-240.261,9.746e-05,2]
[421022920,1776939038172,-250.0,9.746e-05,2]
[421022921,1776939038181,-156.347,9.746e-05,2]
[421022922,1776939038191,-193.933,9.746e-05,2]
[421022923,1776939038200,-250.0,9.746e-05,2]
[421022924,1776939038210,-215.346,9.746e-05,2]
[421022925,1776939038220,-183.0,9.746e-05,2]
[421022926,1776939038229,-241.213,9.746e-05,2]
[421022927,1776939038240,-1349.0,9.746e-05,2]
[421022928,1776939038249,-3530.0,9.746e-05,2]
[421022929,1776939038258,-623.0,9.746e-05,2]
[421022930,1776939038268,-150.0,9.746e-05,2]
[421022931,1776939038277,-1266.0,9.746e-05,2]
[421022932,1776939038286,-927.0,9.746e-05,2]
[421022933,1776939038297,-1221.435,9.746e-05,2]
[421022934,1776939038305,-6032.0,9.746e-05,2]
[421022936,1776939038314,-2474.0,9.746e-05,2]
[421022938,1776939038323,-162.380719,9.758e-05,2]
[421022939,1776939038331,-350.0,9.762e-05,3]
[421022940,1776939038340,-500.0,9.773e-05,2]
[421022941,1776939038350,-160.0,9.8e-05,2]
[421022942,1776939038359,-321.273985,9.8e-05,2]
[421022944,1776939038368,-482.54797,9.8e-05,2]
[421022946,1776939038377,-350.0,9.804e-05,2]
[421022948,1776939038386,-35039.29096596,9.81e-05,2]
[421022950,1776939038398,-26288.06646976,9.81e-05,2]
[421022952,1776939038407,-151.0,9.81e-05,2]
[421022954,1776939038417,-151.0,9.81e-05,2]
[421022956,1776939038427,-189.337614,9.81e-05,2]
[421022958,1776939038435,-189.337614,9.81e-05,2]
[421022959,1776939038445,-189.337614,9.81e-05,2]
[421022961,1776939038454,-189.337614,9.81e-05,2]
[421022963,1776939038463,-2351.0,9.811e-05,2]
[421022964,1776939038472,-162.24421151,9.817e-05,2]
[421022966,1776939038481,-160.0,9.819e-05,2]
[421022967,1776939038506,-161.0,9.89e-05,2]
[421022969,1776939038516,-161.0,9.89e-05,2]
[421022971,1776939038526,-161.0,9.89e-05,2]
[421022973,1776939038537,-151.0,9.897e-05,2]
[421022975,1776939038546,-1093.8672339,9.899e-05,3]
[421022977,1776939038555,-1532.0,9.9e-05,2]
[421022979,1776939038565,-157.0,9.9e-05,2]
[421022981,1776939038574,-167.10696067,9.9e-05,2]
[421022983,1776939038584,-152.0,9.9e-05,2]
[421022985,1776939038594,-167.0,9.9e-05,2]
[421022987,1776939038603,-152.0,9.9e-05,2]
[421022989,1776939038612,-152.0,9.9e-05,2]
[421022991,1776939038621,-1532.0,9.9e-05,2]
[421022993,1776939038630,-1532.0,9.9e-05,2]
[421022995,1776939038639,-1532.0,9.9e-05,2]
[421022997,1776939038649,-1532.0,9.9e-05,2]
[421022999,1776939038658,-151.0,9.9e-05,2]
[421023001,1776939038667,-151.0,9.9e-05,2]
[421023003,1776939038677,-151.0,9.9e-05,2]
[421023005,1776939038686,-151.0,9.9e-05,2]
[421023007,1776939038695,-1682.85287809,9.9e-05,2]
[421023009,1776939038704,-155.0,9.97e-05,2]
[421023011,1776939038713,-150.0,9.973e-05,2]
[421023013,1776939038723,-151.0,9.997e-05,2]
[421023015,1776939038732,-1141.25417798,9.999e-05,3]
[421023017,1776939038742,-4753.74194176,0.0001,2]
[421023020,1776939038754,-829.67010334,0.0001,2]
[421023023,1776939038774,-410.0850894,0.0001,2]
[421023025,1776939038785,-317.0,0.0001,2]
[421023028,1776939038806,-700.0,0.0001,2]
[421023031,1776939038825,-3962.2502192,0.0001,2]
[421023057,1776939040291,-150.0,9.7e-05,2]
[421023058,1776939040301,-5565.53888355,0.0001,2]
[421023059,1776939040454,-67305.59376275,0.0001,2]
[421023060,1776939040464,-193.83,0.0001,2]
[421023061,1776939040473,-162.8939,0.0001,2]
[421023062,1776939040483,-5557.0,0.0001,2]
[421023063,1776939040492,-297.28394475,0.0001,2]
[421023064,1776939040501,-2087.81409609,0.0001,2]
[421023065,1776939040511,-500.0,0.0001,2]
[421023066,1776939040520,-338.36988933,0.0001,2]
[421023067,1776939040530,-2000.0,0.0001,2]
[421023068,1776939040540,-335.32930171,0.0001,2]
[421023069,1776939040550,-151.0,0.0001,2]
[421023070,1776939040559,-151.0,0.0001,2]
[421023071,1776939040569,-151.0,0.0001,2]
[421023072,1776939040578,-151.0,0.0001,2]
[421023073,1776939040588,-151.0,0.0001,2]
[421023074,1776939040597,-151.0,0.0001,2]
[421023075,1776939040607,-151.0,0.0001,2]
[421023076,1776939040616,-151.0,0.0001,2]
[421023078,1776939040626,-151.0,0.0001,2]
[421023080,1776939040635,-151.0,0.0001,2]
[421023082,1776939040645,-151.0,0.0001,2]
[421023084,1776939040654,-151.0,0.0001,2]
[421023086,1776939040664,-151.0,0.0001,2]
[421023088,1776939040673,-151.0,0.0001,2]
[421023090,1776939040682,-151.0,0.0001,2]
[421023092,1776939040692,-151.0,0.0001,2]
[421023094,1776939040702,-151.0,0.0001,2]
[421023096,1776939040711,-151.0,0.0001,2]
[421023097,1776939040721,-151.0,0.0001,2]
[421023098,1776939040731,-151.0,0.0001,2]
[421023099,1776939040740,-151.0,0.0001,2]
[421023100,1776939040750,-151.0,0.0001,2]
[421023101,1776939040760,-151.0,0.0001,2]
[421023102,1776939040769,-151.0,0.0001,2]
[421023103,1776939040779,-151.0,0.0001,2]
[421023104,1776939040788,-151.0,0.0001,2]
[421023105,1776939040798,-151.0,0.0001,2]
[421023106,1776939040807,-151.0,0.0001,2]
[421023107,1776939040817,-151.0,0.0001,2]
[421023108,1776939040827,-151.0,0.0001,2]
[421023109,1776939040836,-151.0,0.0001,2]
[421023110,1776939040846,-1300.74808651,0.0001,2]
[421023111,1776939040855,-486.959588,0.0001,2]
[421023112,1776939040865,-486.959588,0.0001,2]
[421023113,1776939040874,-486.959588,0.0001,2]
[421023114,1776939040884,-486.959588,0.0001,2]
[421023115,1776939040893,-151.0,0.0001,2]
[421023116,1776939040904,-352.15,0.0001,2]
[421023117,1776939040914,-189.337614,0.0001,2]
[421023118,1776939040923,-189.337614,0.0001,2]
[421023119,1776939040934,-189.337614,0.0001,2]
[421023120,1776939040944,-189.337614,0.0001,2]
[421023121,1776939040954,-697.98131807,0.0001,2]
[421023122,1776939040964,-465.32087871,0.0001,2]
[421023123,1776939040974,-536.95558134,0.00010047,2]
[421023124,1776939040984,-864.54471567,0.0001007,2]
[421023125,1776939040993,-350.0,0.00010096,2]
[421023126,1776939041004,-5530.0,0.000101,3]
[421023127,1776939041013,-262.04666607,0.000101,2]
[421023128,1776939041023,-2005.0,0.000101,2]
[421023129,1776939041032,-350.0,0.00010152,2]
[421023130,1776939041041,-350.0,0.00010199,2]
[421023131,1776939041051,-5530.0,0.000102,5]
[421023132,1776939041060,-2000.0,0.000102,2]
[421023133,1776939041070,-433.0,0.00010265,2]
[421023134,1776939041079,-402.61607814,0.00010275,2]
[421023135,1776939041089,-438.100888,0.0001029,2]
[421023136,1776939041099,-313.0,0.000103,2]
[421023137,1776939041108,-307.0,0.000103,2]
[421023138,1776939041118,-168.3888056,0.00010306,2]
[421023139,1776939041127,-168.68,0.00010323,2]
[421023140,1776939041136,-1488.0,0.00010328,5]
[421023141,1776939041146,-150.0,0.00010329,2]
[421023142,1776939041156,-2000.0,0.000104,2]
[421023143,1776939041165,-1339.0,0.00010458,3]
[421023144,1776939041175,-204.0,0.00010458,3]
[421023145,1776939041184,-700.0,0.0001047,2]
[421023146,1776939041194,-151.0,0.00010472,2]
[421023147,1776939041204,-392.62,0.00010481,2]
[421023148,1776939041214,-5000.0,0.0001059,2]
[421023149,1776939041223,-1402.26090544,0.000106,2]
[421023150,1776939041232,-2000.0,0.000106,2]
[421023151,1776939041242,-450.16751125,0.000106,2]
[421023152,1776939041251,-31471.4535081,0.00010611,2]
[421023153,1776939041260,-16379.0414853,0.00010635,2]
[421023154,1776939041270,-189.337614,0.00010635,2]
[421023155,1776939041279,-189.337614,0.00010635,2]
[421023156,1776939041289,-189.337614,0.00010635,2]
[421023157,1776939041298,-189.33761,0.00010635,2]
[421023158,1776939041309,-3298.227,0.00010646,2]
[421023159,1776939041319,-239.282,0.00010646,2]
[421023160,1776939041329,-486.959588,0.00010646,2]
[421023161,1776939041339,-486.959588,0.00010646,2]
[421023162,1776939041348,-486.959588,0.00010646,2]
[421023163,1776939041358,-486.959588,0.00010646,2]
[421023164,1776939041367,-500.0,0.0001067,2]
[421023165,1776939041376,-700.0,0.0001067,2]
[421023166,1776939041386,-400.0,0.0001067,2]
[421023167,1776939041395,-700.0,0.0001067,2]
[421023168,1776939041404,-700.0,0.0001067,2]
[421023169,1776939041414,-20391.2164946,0.00010674,2]
[421023170,1776939041423,-155.17433017,0.00010685,2]
[421023171,1776939041432,-150.0,0.00010685,2]
[421023172,1776939041441,-3172.0,0.00010685,2]
[421023173,1776939041451,-151.0,0.00010687,2]
[421023174,1776939041461,-350.0,0.00010688,2]
[421023175,1776939041470,-186402.3035983,0.0001069,3]
[421023176,1776939041480,-486.959588,0.0001069,2]
[421023177,1776939041489,-486.959588,0.0001069,2]
[421023178,1776939041499,-486.959588,0.0001069,2]
[421023179,1776939041508,-486.959578,0.0001069,2]
[421023180,1776939041517,-200.0,0.0001069,2]
[421023181,1776939041527,-1136.2075932,0.0001069,2]
[421023182,1776939041536,-153.4004789,0.00010697,2]
[421023183,1776939041546,-150.0,0.00010699,2]
[421023184,1776939041556,-150.0,0.00010699,2]
[421023185,1776939041566,-1266.0,0.000107,5]
[421023186,1776939041578,-160558.72682805,0.000107,2]
[421023200,1776939045368,-476.542,9.746e-05,2]
[421023201,1776939045378,-348.99065903,0.0001067,2]
[421023202,1776939045388,-1691.7228149,0.000107,2]
[421023207,1776939045713,-151.47,0.00010641,2]
[421023209,1776939045727,-345.12037539,0.000107,2]
[421023211,1776939045739,-682.71705098,0.000107,2]
[421023213,1776939045751,-703.1775563,0.000107,2]
[421023214,1776939045781,-1446.06199103,0.000107,2]
[421023215,1776939045879,-2900.0,0.000107,2]
[421023216,1776939046148,-1213.16,0.000107,2]
[421023217,1776939046204,-10935.78174382,0.000107,2]
[421023328,1776940231858,-1200.0,7.914e-05,2]
[421023329,1776940231870,-250.0,7.915e-05,2]
[421023330,1776940231880,-150.0,7.915e-05,2]
[421023331,1776940231892,-150.0,7.915e-05,2]
[421023332,1776940231901,-150.0,7.915e-05,2]
[421023333,1776940231913,-150.0,7.915e-05,2]
[421023334,1776940231923,-150.0,7.915e-05,2]
[421023335,1776940231933,-150.0,7.915e-05,2]
[421023336,1776940231942,-150.5557287,7.915e-05,2]
[421023351,1776940232388,-150.12467891,7.915e-05,2]
[421023352,1776940232398,-150.0,7.915e-05,2]
[421023353,1776940232406,-150.0,7.915e-05,2]
[421023354,1776940232416,-150.0,7.959e-05,2]
[421023355,1776940232425,-150.0,8.003e-05,2]
[421023356,1776940232434,-150.0,8.047e-05,2]
[421023357,1776940232443,-150.0,8.062e-05,2]
[421023358,1776940232453,-150.0,8.091e-05,2]
[421023359,1776940232463,-150.0,8.135e-05,2]
[421023360,1776940232472,-150.0,8.135e-05,2]
[421023361,1776940232691,-150.0,8.135e-05,2]
[421023362,1776940232701,-150.0,8.179e-05,2]
[421023363,1776940232710,-150.0,8.208e-05,2]
[421023364,1776940232719,-150.0,8.208e-05,2]
[421023365,1776940232728,-150.0,8.208e-05,2]
[421023366,1776940232738,-280.0,8.219e-05,2]
[421023367,1776940232747,-150.0,8.223e-05,2]
[421023368,1776940232756,-150.0,8.267e-05,2]
[421023369,1776940232766,-150.0,8.311e-05,2]
[421023370,1776940232775,-150.0,8.355e-05,2]
[421023371,1776940232785,-150.0,8.355e-05,2]
[421023372,1776940232795,-150.0,8.355e-05,2]
[421023373,1776940232805,-150.0,8.355e-05,2]
[421023374,1776940232815,-150.0,8.355e-05,2]
[421023375,1776940232826,-150.0,8.399e-05,2]
[421023376,1776940232835,-150.0,8.443e-05,2]
[421023377,1776940232845,-151.0,8.471e-05,2]
[421023378,1776940232855,-150.0,8.487e-05,2]
[421023379,1776940232863,-150.0,8.501e-05,2]
[421023380,1776940232873,-150.0,8.501e-05,2]
[421023381,1776940232882,-150.0,8.501e-05,2]
[421023382,1776940232891,-150.0,8.531e-05,2]
[421023383,1776940232901,-150.0,8.575e-05,2]
[421023384,1776940232910,-150.0,8.575e-05,2]
[421023385,1776940232920,-150.0,8.575e-05,2]
[421023386,1776940232929,-150.0,8.619e-05,2]
[421023387,1776940232939,-150.0,8.619e-05,2]
[421023388,1776940232948,-150.0,8.648e-05,2]
[421023389,1776940232957,-150.0,8.663e-05,2]
[421023390,1776940232967,-775.2585,8.685e-05,2]
[421023391,1776940232976,-1680.0,8.705e-05,2]
[421023392,1776940232986,-5000.0,8.705e-05,2]
[421023393,1776940232996,-250.0,8.705e-05,2]
[421023394,1776940233005,-500.0,8.705e-05,2]
[421023395,1776940233014,-250.0,8.705e-05,2]
[421023396,1776940233023,-300.0,8.705e-05,2]
[421023397,1776940233032,-500.0,8.707e-05,2]
[421023398,1776940233042,-150.0,8.707e-05,2]
[421023399,1776940233051,-193.0,8.707e-05,2]
[421023400,1776940233060,-300.0,8.707e-05,2]
[421023401,1776940233070,-300.0,8.707e-05,2]
[421023402,1776940233079,-300.0,8.707e-05,2]
[421023403,1776940233088,-300.0,8.707e-05,2]
[421023404,1776940233097,-5000.0,8.707e-05,2]
[421023405,1776940233106,-5000.0,8.707e-05,2]
[421023406,1776940233115,-5000.0,8.707e-05,2]
[421023407,1776940233125,-5000.0,8.707e-05,2]
[421023408,1776940233134,-500.0,8.707e-05,2]
[421023409,1776940233143,-500.0,8.707e-05,2]
[421023410,1776940233153,-500.0,8.707e-05,2]
[421023411,1776940233162,-351.57966066,8.707e-05,2]
[421023412,1776940233171,-2500.0,8.719e-05,2]
[421023413,1776940233180,-150.0,8.751e-05,2]
[421023414,1776940233189,-150.0,8.757e-05,2]
[421023415,1776940233198,-150.0,8.757e-05,2]
[421023416,1776940233207,-150.0,8.757e-05,2]
[421023417,1776940233216,-150.0,8.757e-05,2]
[421023418,1776940233225,-150.0,8.795e-05,2]
[421023419,1776940233234,-280.90970038,8.795e-05,2]
[421023420,1776940233244,-211.26673769,8.795e-05,2]
[421023421,1776940233253,-150.00000001,8.795e-05,2]
[421023422,1776940233262,-153.95685762,8.795e-05,2]
[421023423,1776940233271,-297.75503325,8.795e-05,2]
[421023424,1776940233280,-239.87337831,8.795e-05,2]
[421023425,1776940233289,-289.80723727,8.795e-05,2]
[421023426,1776940233299,-151.0,8.814e-05,2]
[421023427,1776940233307,-209.1197771,8.814e-05,2]
[421023428,1776940233317,-500.0,8.818e-05,2]
[421023429,1776940233326,-500.0,8.818e-05,2]
[421023430,1776940233335,-500.0,8.818e-05,2]
[421023431,1776940233344,-305.84475648,8.818e-05,2]
[421023432,1776940233353,-500.0,8.818e-05,2]
[421023433,1776940233361,-500.0,8.818e-05,2]
[421023434,1776940233370,-500.0,8.818e-05,2]
[421023435,1776940233379,-500.0,8.818e-05,2]
[421023436,1776940233388,-190.99481191,8.818e-05,2]
[421023437,1776940233397,-500.0,8.818e-05,2]
[421023438,1776940233406,-500.0,8.818e-05,2]
[421023439,1776940233415,-500.0,8.818e-05,2]
[421023440,1776940233424,-500.0,8.818e-05,2]
[421023441,1776940233434,-487.73080693,8.818e-05,2]
[421023442,1776940233443,-500.0,8.818e-05,2]
[421023443,1776940233452,-500.0,8.818e-05,2]
[421023444,1776940233461,-500.0,8.818e-05,2]
[421023445,1776940233470,-500.0,8.818e-05,2]
[421023446,1776940233479,-500.0,8.818e-05,2]
[421023447,1776940233488,-500.0,8.818e-05,2]
[421023448,1776940233497,-500.0,8.818e-05,2]
[421023449,1776940233507,-500.0,8.818e-05,2]
[421023450,1776940233516,-500.0,8.818e-05,2]
[421023451,1776940233525,-420.82290884,8.818e-05,2]
[421023452,1776940233534,-500.0,8.818e-05,2]
[421023453,1776940233544,-500.0,8.818e-05,2]
[421023454,1776940233554,-600.0,8.818e-05,2]
[421023455,1776940233563,-500.0,8.818e-05,2]
[421023456,1776940233573,-500.0,8.818e-05,2]
[421023457,1776940233582,-500.0,8.818e-05,2]
[421023458,1776940233591,-244.7417744,8.818e-05,2]
[421023459,1776940233600,-500.0,8.818e-05,2]
[421023460,1776940233610,-500.0,8.818e-05,2]
[421023461,1776940233619,-500.0,8.818e-05,2]
[421023462,1776940233628,-500.0,8.818e-05,2]
[421023463,1776940233638,-587.34800932,8.818e-05,2]
[421023464,1776940233647,-174.08643365,8.818e-05,2]
[421023465,1776940233656,-500.0,8.818e-05,2]
[421023466,1776940233665,-500.0,8.818e-05,2]
[421023467,1776940233674,-500.0,8.818e-05,2]
[421023468,1776940233684,-500.0,8.818e-05,2]
[421023469,1776940233693,-500.0,8.818e-05,2]
[421023470,1776940233703,-500.0,8.818e-05,2]
[421023471,1776940233712,-500.0,8.818e-05,2]
[421023472,1776940233721,-500.0,8.818e-05,2]
[421023473,1776940233731,-500.0,8.818e-05,2]
[421023474,1776940233740,-500.0,8.818e-05,2]
[421023475,1776940233749,-500.0,8.818e-05,2]
[421023476,1776940233758,-500.0,8.818e-05,2]
[421023477,1776940233767,-500.0,8.818e-05,2]
[421023478,1776940233776,-500.0,8.818e-05,2]
[421023479,1776940233786,-500.0,8.818e-05,2]
[421023480,1776940233795,-500.0,8.818e-05,2]
[421023481,1776940233804,-500.0,8.818e-05,2]
[421023482,1776940233813,-500.0,8.818e-05,2]
[421023483,1776940233823,-500.0,8.818e-05,2]
[421023484,1776940233832,-500.0,8.818e-05,2]
[421023485,1776940233840,-500.0,8.818e-05,2]
[421023486,1776940233850,-500.0,8.818e-05,2]
[421023487,1776940233860,-500.0,8.818e-05,2]
[421023488,1776940233869,-500.0,8.818e-05,2]
[421023489,1776940233878,-500.0,8.818e-05,2]
[421023490,1776940233888,-500.0,8.818e-05,2]
[421023491,1776940233898,-500.0,8.818e-05,2]
[421023492,1776940233907,-500.0,8.818e-05,2]
[421023493,1776940233917,-500.0,8.818e-05,2]
[421023494,1776940233926,-500.0,8.818e-05,2]
[421023495,1776940233936,-500.0,8.818e-05,2]
[421023496,1776940233945,-500.0,8.818e-05,2]
[421023497,1776940233955,-500.0,8.818e-05,2]
[421023498,1776940233964,-500.0,8.818e-05,2]
[421023499,1776940233973,-500.0,8.818e-05,2]
[421023500,1776940233983,-380.59236477,8.818e-05,2]
[421023501,1776940233992,-500.0,8.818e-05,2]
[421023502,1776940234002,-500.0,8.818e-05,2]
[421023503,1776940234011,-500.0,8.818e-05,2]
[421023504,1776940234021,-500.0,8.818e-05,2]
[421023505,1776940234030,-500.0,8.818e-05,2]
[421023506,1776940234040,-1073.10454054,8.818e-05,3]
[421023507,1776940234049,-963.76,8.818e-05,2]
[421023508,1776940234059,-150.0,8.818e-05,2]
[421023509,1776940234068,-29974.57069661,8.819e-05,2]
[421023510,1776940234099,-7587.03091328,8.819e-05,2]
[421023511,1776940234111,-3860.07176387,8.819e-05,2]
[421023515,1776940238093,-500.0,8.775e-05,2]
[421023516,1776940238103,-494.37005,8.775e-05,2]
[421023517,1776940238150,-5.62995,8.775e-05,2]
[421023518,1776940238160,-500.0,8.775e-05,2]
[421023519,1776940238170,-816.81414119,8.819e-05,2]
[421023520,1776940238297,-400.72499639,8.775e-05,2]
[421023521,1776940238312,-99.27500361,8.775e-05,2]
[421023522,1776940238321,-76066.25856693,8.819e-05,2]
[421023523,1776940238333,-48993.48432967,8.819e-05,2]
[421023525,1776940238344,-829.67010334,8.819e-05,2]
[421023709,1776940242285,-500.0,8.775e-05,2]
[421023710,1776940242295,-500.0,8.775e-05,2]
[421023711,1776940242304,-500.0,8.775e-05,2]
[421023712,1776940242313,-500.0,8.775e-05,2]
[421023713,1776940242323,-3557.62130061,8.819e-05,2]
[421023714,1776940242334,-772.78,8.819e-05,2]
[421023741,1776940246288,-500.0,8.705e-05,2]
[421023742,1776940246298,-500.0,8.775e-05,2]
[421023743,1776940246308,-500.0,8.775e-05,2]
[421023744,1776940246318,-500.0,8.775e-05,2]
[421023745,1776940246328,-500.0,8.775e-05,2]
[421023746,1776940246338,-500.0,8.775e-05,2]
[421023747,1776940246347,-466.70549237,8.775e-05,2]
[421023748,1776940246357,-150.0,8.775e-05,2]
[421023749,1776940246367,-50823.09745523,8.819e-05,2]
[421023750,1776940246379,-772.35,8.819e-05,2]
[421023751,1776940246391,-707.3898016,8.819e-05,2]
[421023752,1776940246404,-11177.15325286,8.819e-05,2]
[421023753,1776940246423,-348.22719424,8.819e-05,2]
[421023754,1776940246435,-391.61817525,8.819e-05,2]
[421023755,1776940246454,-646.28067332,8.819e-05,2]
[421023756,1776940246521,-771.92754218,8.819e-05,2]
[421023781,1776941432060,-300.0,7.643e-05,2]
[421023782,1776941432071,-300.0,7.643e-05,2]